bitfinex/quotes_ETHUSD_20250511
["timestamp","ask_amount","ask_price","bid_price","bid_amount"]
[1746924795120,4.7351432,2543.9,2542.6,8.0]
[1746924795322,3.949,2543.4,2542.6,8.0]
[1746924795522,0.55,2543.0,2542.6,8.0]
[1746924795688,4.4825148,2543.0,2542.6,8.0]
[1746924796195,0.55,2543.1,2542.6,8.03932539]
[1746924796387,3.949,2543.4,2542.6,8.0]
[1746924796709,3.93240806,2543.0,2542.6,8.0]
[1746924796913,3.93281126,2542.8,2542.6,8.0]
[1746924797108,4.48298198,2542.6,2542.5,0.809]
[1746924797279,3.58097256,2543.1,2542.2,4.795]
[1746924797608,3.93299666,2542.6,2542.2,4.795]
[1746924797803,0.8041,2543.2,2542.3,8.03933003]
[1746924798010,3.93256648,2542.9,2542.3,8.0]
[1746924798402,4.48236335,2543.0,2542.3,8.0]
[1746924798607,0.55,2543.0,2542.3,8.0]
[1746924798786,3.93278649,2542.8,2542.3,8.0]
[1746924799113,0.55,2543.1,2542.4,0.84832609]
[1746924799314,0.55,2543.1,2542.4,0.809]
[1746924799609,0.55,2543.2,2542.5,0.03932322]
[1746924800113,3.9323523,2543.1,2542.4,0.809]
[1746924800323,0.55,2543.0,2542.4,0.809]
[1746924800479,3.93251799,2542.9,2542.4,0.809]
[1746924800832,0.55,2542.6,2542.4,0.809]
[1746924801119,11.45367073,2542.8,2542.4,0.809]
[1746924801519,11.45370209,2542.8,2542.4,0.809]
[1746924801829,3.938,2543.0,2542.4,0.809]
[1746924802127,0.55,2543.1,2542.4,0.809]
[1746924802307,3.58097256,2543.2,2542.4,0.809]
[1746924802511,7.51310346,2543.2,2542.5,0.03932353]
[1746924803008,3.58097256,2543.5,2542.5,0.03932283]
[1746924803212,3.93190222,2543.3,2542.2,0.803]
[1746924803511,3.936,2543.4,2542.5,0.803]
[1746924803878,0.55,2543.3,2542.5,0.803]
[1746924804081,0.7806,2544.8,2542.7,0.803]
[1746924804392,0.7806,2544.8,2542.3,8.8803]
[1746924804393,3.93040737,2544.3,2543.0,0.803]
[1746924804609,3.93078912,2544.1,2543.2,0.803]
[1746924804778,3.93085696,2544.0,2543.2,0.803]
[1746924804974,3.93113859,2543.8,2543.2,0.803]
[1746924805174,3.58097256,2544.0,2543.2,0.803]
[1746924805440,0.55,2543.9,2543.3,0.03931444]
[1746924805577,3.93039802,2544.3,2543.3,0.03931444]
[1746924805894,3.932,2544.3,2543.1,0.803]
[1746924806093,3.58097256,2544.5,2543.3,0.7593]
[1746924806297,3.58097256,2544.8,2543.5,0.7593]
[1746924806597,3.58097256,2544.8,2543.8,0.7504]
[1746924806799,3.58097256,2544.8,2544.0,0.7504]
[1746924807426,7.5100413,2545.2,2544.2,0.7504]
[1746924807719,11.4390413,2545.2,2544.3,0.78969488]
[1746924807920,3.9291607,2545.1,2544.4,3.941]
[1746924808086,0.55,2545.0,2544.5,8.03929492]
[1746924808280,11.43899209,2545.2,2544.5,8.03929492]
[1746924808614,3.92916269,2545.1,2544.5,8.03929492]
[1746924808917,7.50997256,2545.2,2544.5,8.03929492]
[1746924809250,4.47923308,2545.1,2544.5,8.03929492]
[1746924809417,7.50997256,2545.2,2544.6,1.94842949]
[1746924809604,3.929,2545.2,2544.7,0.03929164]
[1746924809915,3.58097256,2545.6,2544.7,0.7504]
[1746924810100,3.924,2545.9,2544.8,0.03928673]
[1746924810301,0.7664,2546.7,2544.9,0.7504]
[1746924810518,0.7664,2546.7,2545.0,0.03927992]
[1746924810519,3.58097256,2546.4,2545.0,0.03927992]
[1746924810811,3.58097256,2546.4,2545.1,0.7504]
[1746924811017,3.58097256,2546.4,2545.4,0.7504]
[1746924811416,7.50788581,2546.6,2545.4,0.7504]
[1746924811607,7.50788581,2546.6,2545.5,0.03927208]
[1746924811900,3.58097256,2546.6,2545.6,0.7622]
[1746924812104,3.58097256,2546.6,2545.8,0.7622]
[1746924812283,0.00884254,2546.8,2546.0,0.7622]
[1746924812483,0.00884254,2546.8,2546.3,0.7622]
[1746924812683,7.50097256,2547.3,2546.5,8.0]
[1746924812914,3.58097256,2547.3,2546.7,0.7622]
[1746924813127,0.6137652,2547.0,2546.8,0.03925855]
[1746924813642,0.6137652,2547.0,2546.9,0.7622]
[1746924814824,3.58097256,2547.9,2546.9,0.7622]
[1746924814991,7.50578897,2547.9,2546.9,1.63842]
[1746924815190,3.58097256,2547.9,2546.9,1.63842]
[1746924815392,3.92557117,2547.4,2546.6,14.9082]
[1746924815592,3.92629165,2547.0,2546.7,8.0]
[1746924815797,3.58097256,2547.1,2545.6,14.141]
[1746924816100,3.58097256,2546.7,2545.8,8.7622]
[1746924816300,3.58097256,2546.7,2546.0,0.7622]
[1746924816844,0.55,2546.6,2546.1,3.937]
[1746924817023,0.55,2546.6,2546.2,8.0]
[1746924817193,3.92695857,2546.5,2546.1,3.937]
[1746924817399,0.55,2546.2,2546.1,3.936]
[1746924817592,3.58097256,2546.3,2546.1,3.936]
[1746924818426,7.50828081,2546.3,2546.1,3.936]
[1746924818638,3.58097256,2546.3,2546.1,11.936]
[1746924819104,3.911,2546.5,2546.2,8.0]
[1746924819305,3.911,2546.5,2546.2,1.1936]
[1746924819516,7.83804849,2546.5,2546.1,3.936]
[1746924819713,0.55,2546.4,2546.1,3.936]
[1746924820042,7.50832596,2546.3,2546.1,3.936]
[1746924820345,3.911,2546.5,2546.1,3.936]
[1746924820551,0.55,2546.2,2544.1,0.7622]
[1746924820763,3.93087477,2544.0,2543.6,0.7622]
[1746924821053,3.57778317,2543.7,2543.1,3.936]
[1746924821221,3.57778317,2543.3,2542.8,0.7622]
[1746924821427,6.48834311,2543.2,2542.7,3.936]
[1746924821621,3.93267264,2542.8,2542.5,14.137]
[1746924821828,3.57778317,2542.9,2540.6,4.0504]
[1746924821829,3.93379256,2542.1,2541.9,3.936]
[1746924822011,3.93198645,2543.3,2541.9,0.46982]
[1746924822012,7.48278317,2542.4,2541.9,0.46982]
[1746924822347,3.57778317,2542.0,2541.8,0.7622]
[1746924822854,3.57778317,2542.4,2541.8,0.7622]
[1746924823148,7.48178317,2542.8,2541.9,0.03933385]
[1746924823350,3.57778317,2542.4,2541.8,0.7622]
[1746924823710,5.31552811,2543.2,2541.9,0.03933296]
[1746924823946,0.55,2543.4,2542.0,8.0]
[1746924824141,0.55,2543.2,2542.1,1.1942333]
[1746924824345,0.55,2543.2,2542.3,8.0]
[1746924824859,0.55,2543.2,2542.4,0.03932331]
[1746924825043,0.04001751,2543.2,2542.3,8.0]
[1746924825214,3.93179341,2543.4,2542.4,0.03932717]
[1746924825417,0.55,2543.3,2542.5,0.7622]
[1746924825618,0.55,2543.3,2542.6,0.03932174]
[1746924825819,0.55,2543.4,2542.6,0.03932174]
[1746924826061,9.21852811,2543.5,2542.5,0.7622]
[1746924826211,3.93147996,2543.6,2542.7,8.0]
[1746924826416,7.83330899,2543.7,2542.7,10.29445179]
[1746924826648,3.93159842,2543.5,2542.7,10.29445179]
[1746924827239,3.93190077,2543.3,2542.7,8.0]
[1746924827419,3.93171459,2543.5,2542.7,8.0]
[1746924827756,3.93159032,2543.5,2542.7,8.0]
[1746924828257,3.93174961,2543.4,2542.7,8.0]
[1746924828546,3.93198665,2543.3,2542.7,8.0]
[1746924828715,0.59001751,2543.6,2542.7,10.29052]
[1746924829015,5.61767666,2544.7,2542.9,0.7704]
[1746924829216,5.31552811,2544.7,2543.2,0.7704]
[1746924829423,0.04001751,2544.7,2543.3,0.03930168]
[1746924829638,10.0,2544.9,2543.4,0.7704]
[1746924829830,9.21552811,2545.1,2543.6,0.7704]
[1746924830040,13.14475013,2545.1,2543.7,0.03929566]
[1746924830243,4.7069,2545.4,2543.9,8.7704]
[1746924830440,0.04001751,2545.3,2544.1,8.0]
[1746924830618,0.04001751,2545.3,2544.2,2.2147]
[1746924830936,5.31552811,2545.1,2544.1,8.0]
[1746924831136,0.04001751,2545.0,2544.1,8.0]
[1746924831452,3.92999044,2544.6,2544.1,8.0]
[1746924831760,0.55,2544.6,2544.1,8.0]
[1746924832052,4.47989324,2544.6,2544.1,8.039302]
[1746924832249,4.47989324,2544.6,2544.1,8.0]
[1746924832758,0.55,2544.6,2544.1,8.0]
[1746924833118,0.55,2544.5,2544.1,8.0]
[1746924833326,0.55,2544.5,2544.1,8.03930354]
[1746924833731,3.93015606,2544.5,2544.1,0.03930354]
[1746924834054,0.55,2544.2,2544.1,3.901]
[1746924834282,3.9305086,2544.2,2544.1,3.901]
[1746924834452,4.52052611,2544.2,2544.1,3.901]
[1746924835021,0.04001751,2544.3,2544.1,11.901]
[1746924835233,3.92955362,2544.9,2544.1,11.901]
[1746924835419,3.92990426,2544.6,2544.1,11.901]
[1746924835619,0.55,2544.7,2544.2,8.0]
[1746924835857,0.59001751,2544.7,2544.2,8.0]
[1746924836352,0.55,2544.5,2544.2,8.0]
[1746924837029,0.55,2544.6,2544.2,8.0]
[1746924837246,4.47985775,2544.7,2544.2,8.0]
[1746924837451,0.04001751,2544.6,2544.2,8.0]
[1746924837849,3.96979335,2544.7,2544.2,8.0]
[1746924838047,0.55,2544.5,2544.2,8.0]
[1746924838762,0.55,2544.6,2544.2,8.03930408]
[1746924838958,0.55,2544.6,2544.2,8.0]
[1746924839280,0.04001751,2544.5,2544.2,8.0]
[1746924839561,4.4805086,2544.2,2544.1,3.901]
[1746924839929,0.55,2544.2,2544.1,3.901]
[1746924840364,9.96262811,2545.0,2544.1,3.901]
[1746924840657,3.92958189,2544.8,2544.2,8.0]
[1746924840858,0.04001751,2544.7,2544.2,8.0]
[1746924841062,0.55,2544.8,2544.2,8.03930227]
[1746924841359,0.04001751,2544.9,2544.2,8.03930227]
[1746924841564,3.889,2545.1,2544.3,0.7677]
[1746924841565,0.04001751,2545.1,2544.3,0.7677]
[1746924841857,0.04001751,2545.1,2544.4,0.03929543]
[1746924842064,0.04001751,2545.3,2544.4,0.03929543]
[1746924842426,3.96884057,2545.3,2544.4,0.03929543]
[1746924842626,0.55,2545.2,2544.3,0.7677]
[1746924842933,0.55,2544.7,2544.2,8.0]
[1746924843158,0.55,2544.7,2544.2,8.03930118]
[1746924843671,0.59001751,2545.0,2544.2,10.60873012]
[1746924843866,0.55,2544.8,2544.2,10.60873012]
[1746924844165,0.04001751,2544.7,2544.2,8.0]
[1746924844551,4.48029629,2544.4,2544.3,3.9]
[1746924844857,4.4806631,2544.1,2544.0,14.147]
[1746924845059,8.09484331,2544.1,2544.0,22.147]
[1746924845278,3.93081761,2544.0,2543.9,3.9]
[1746924845638,3.97083512,2544.0,2543.9,3.9]
[1746924845865,0.55,2544.3,2543.9,3.9]
[1746924846048,0.59001751,2544.3,2543.9,4.6677]
[1746924846362,0.55,2544.3,2543.9,4.6677]
[1746924846737,3.5741627,2544.4,2543.9,4.6677]
[1746924846738,3.61418021,2544.4,2544.0,8.0]
[1746924846948,3.5741627,2544.4,2544.0,8.0393074]
[1746924847136,3.5741627,2544.4,2544.0,8.0]
[1746924847463,0.55,2544.2,2544.0,8.0]
[1746924847634,0.55,2544.2,2543.5,0.7677]
[1746924847830,0.8301,2544.0,2543.2,3.9]
[1746924848048,3.5741627,2543.5,2543.2,3.9]
[1746924848246,0.04001751,2543.7,2543.2,3.9]
[1746924848434,3.5741627,2543.9,2543.3,8.0]
[1746924848640,0.04001751,2543.9,2543.3,8.0]
[1746924848845,0.55,2544.0,2543.3,8.03931437]
[1746924849161,0.04001751,2543.9,2543.3,8.0]
[1746924849361,3.5741627,2544.2,2543.4,1.41742861]
[1746924849675,0.04001751,2544.1,2543.4,1.378117]
[1746924849832,0.55,2544.0,2543.3,8.0]
[1746924850031,3.97107299,2543.9,2543.3,8.0]
[1746924850265,0.04001751,2543.9,2543.3,8.0]
[1746924850578,0.55,2543.8,2543.3,8.0]
[1746924850992,0.55,2543.3,2542.2,0.7677]
[1746924851294,4.48294062,2542.7,2542.2,2.25897]
[1746924851586,3.93333227,2542.4,2541.9,3.9]
[1746924851788,3.93315778,2542.5,2542.0,8.0]
[1746924851946,3.93313667,2542.5,2541.9,3.9]
[1746924852138,0.04001751,2542.6,2541.9,3.9]
[1746924852338,3.9334508,2542.3,2541.9,3.9]
[1746924852570,0.04001751,2542.3,2541.9,3.9]
[1746924852776,0.55,2542.6,2542.0,8.03933339]
[1746924853002,3.9331387,2542.5,2542.0,8.0]
[1746924853277,0.04001751,2542.4,2542.0,3.9]
[1746924854051,0.55,2542.3,2542.0,3.9]
[1746924854683,4.4834462,2542.3,2542.0,3.9]
[1746924854888,0.55,2542.3,2542.0,3.9]
[1746924855264,0.59001751,2542.7,2542.0,4.36587]
[1746924855449,3.93298198,2542.6,2542.0,3.9]
[1746924855643,0.04001751,2542.5,2542.0,3.9]
[1746924855951,4.48375555,2542.1,2542.0,3.9]
[1746924856149,3.93430393,2541.8,2541.4,4.6597]
[1746924856501,3.5741627,2541.8,2541.4,8.0]
[1746924857072,3.61418021,2541.8,2541.3,18.046]
[1746924857278,0.55,2541.9,2541.4,11.9413442]
[1746924857473,0.55,2541.9,2541.4,11.902]
[1746924857676,0.55,2542.4,2541.5,0.03934421]
[1746924857956,0.55,2542.2,2541.5,0.03934421]
[1746924858177,3.61418021,2542.5,2541.4,14.58257]
[1746924858412,0.04001751,2542.5,2541.6,0.7649]
[1746924858720,0.04001751,2542.5,2541.7,0.03933446]
[1746924859009,3.93364151,2542.2,2541.6,0.7649]
[1746924859330,4.48400055,2542.0,2541.3,18.016]
[1746924859615,3.91001751,2541.9,2541.3,18.016]
[1746924859789,0.55,2541.8,2541.4,8.0]
[1746924860583,0.04001751,2541.7,2541.4,8.0]
[1746924861321,0.55,2541.8,2541.4,8.0]
[1746924861489,4.48416276,2541.9,2541.4,8.0]
[1746924861688,0.04001751,2541.8,2541.4,8.0]
[1746924861874,0.55,2541.5,2541.4,8.0]
[1746924862076,4.48468424,2541.5,2541.4,8.0]
[1746924862310,0.55,2541.5,2541.4,8.0]
[1746924862511,4.48468424,2541.5,2541.4,8.0]
[1746924862671,4.48399044,2542.0,2541.4,8.0]
[1746924862877,4.48428657,2541.8,2541.4,8.0]
[1746924863102,0.04001751,2541.7,2541.4,8.0]
[1746924863298,0.59001751,2542.0,2541.4,9.78076029]
[1746924863577,0.59001751,2542.0,2541.4,8.0]
[1746924863788,4.52399738,2542.0,2541.4,8.0]
[1746924864121,3.93425572,2541.8,2541.4,8.0]
[1746924864621,3.9347549,2541.5,2540.9,3.872]
[1746924864822,3.97495997,2541.4,2541.0,8.0]
[1746924865198,3.93514047,2541.3,2540.9,3.872]
[1746924865429,3.97520344,2541.2,2541.0,8.0]
[1746924865578,0.04001751,2541.3,2541.0,8.0]
[1746924866711,3.97505559,2541.3,2541.0,8.0]
[1746924866916,0.04001751,2541.3,2541.0,8.0]
[1746924867432,0.55,2541.2,2541.0,8.0]
[1746924867597,4.48523033,2541.2,2541.0,8.0]
[1746924867793,0.55,2541.2,2541.0,8.0]
[1746924868285,0.04001751,2541.3,2541.0,8.0]
[1746924868479,3.865,2541.4,2541.0,8.0]
[1746924868681,0.04001751,2541.3,2541.0,8.0]
[1746924869114,3.865,2541.4,2541.0,8.0]
[1746924869317,3.865,2541.4,2541.0,9.9845]
[1746924869533,3.865,2541.4,2541.0,8.7973]
[1746924869958,3.90101751,2541.9,2541.1,0.03935103]
[1746924870119,0.04001751,2541.9,2541.1,0.03935103]
[1746924870324,3.86,2542.5,2541.2,0.7973]
[1746924870640,0.55,2542.3,2541.3,0.03934195]
[1746924870836,0.04001751,2542.2,2541.3,0.03934195]
[1746924871235,3.86,2542.4,2541.3,0.03934195]
[1746924871557,3.5741627,2542.7,2541.4,0.84073858]
[1746924871728,0.55,2542.6,2541.5,0.03933634]
[1746924871927,0.55,2542.2,2541.7,8.0]
[1746924872127,0.82261751,2542.1,2541.1,3.873]
[1746924872327,0.55,2541.7,2541.1,8.46744]
[1746924872921,0.55,2541.9,2541.2,0.03934799]
[1746924873116,0.55,2541.8,2541.2,0.03934799]
[1746924873455,0.55,2541.8,2541.0,3.873]
[1746924873456,3.93503403,2541.3,2541.0,3.873]
[1746924873749,0.04001751,2541.2,2541.1,8.0]
[1746924873954,0.04001751,2541.7,2541.1,8.0]
[1746924874154,3.97444138,2541.7,2541.1,8.03934893]
[1746924874361,0.04001751,2541.7,2541.1,8.03934893]
[1746924874531,0.04001751,2541.7,2541.1,9.23058382]
[1746924874731,3.89601751,2542.1,2541.2,0.8014]
[1746924875056,0.04001751,2542.0,2541.3,0.03934377]
[1746924875255,3.97396114,2542.0,2541.3,0.03934377]
[1746924875460,4.48425704,2541.8,2541.2,0.8014]
[1746924875772,0.04001751,2541.7,2541.2,0.8014]
[1746924875927,3.93408546,2541.9,2541.3,0.03934721]
[1746924876122,0.55,2541.9,2541.3,0.03934721]
[1746924876321,0.04001751,2542.0,2541.3,0.03934721]
[1746924876552,3.93407365,2541.9,2541.2,2.06884]
[1746924876760,0.04001751,2541.8,2541.2,0.8014]
[1746924876960,3.93464789,2541.6,2541.2,0.8014]
[1746924877336,3.856,2542.1,2541.2,0.8014]
[1746924877547,0.55,2541.9,2541.2,0.84074642]
[1746924877725,3.97435222,2541.8,2541.2,0.84074642]
[1746924877936,0.04001751,2541.8,2541.2,0.84074642]
[1746924878372,0.55,2541.9,2541.2,0.84074642]
[1746924878964,0.04001751,2541.8,2541.2,0.8014]
[1746924879160,0.55,2541.7,2541.2,0.8014]
[1746924879483,0.04001751,2541.6,2541.2,0.8014]
[1746924879784,3.93437864,2541.7,2541.2,0.8014]
[1746924879932,0.04001751,2541.6,2541.2,0.8014]
[1746924880134,3.93468424,2541.5,2541.2,0.8014]
[1746924880333,0.04001751,2541.6,2541.2,0.8014]
[1746924880537,0.55,2541.7,2541.2,0.8014]
[1746924880838,3.974577,2541.6,2541.2,0.8014]
[1746924881036,0.55,2541.5,2540.8,0.8313]
[1746924881280,0.55,2541.3,2540.9,3.873]
[1746924881464,0.04001751,2541.2,2541.0,8.0]
[1746924881772,4.48493414,2541.4,2540.8,0.8313]
[1746924881980,3.93532464,2541.1,2540.9,3.873]
[1746924882173,0.04001751,2541.0,2540.9,3.873]
[1746924882384,3.97532111,2541.1,2540.9,3.873]
[1746924882944,0.04001751,2541.1,2540.9,3.873]
[1746924883143,0.04001751,2541.2,2540.9,3.873]
[1746924883653,3.97529436,2541.2,2540.9,3.873]
[1746924884047,0.04001751,2541.2,2540.9,3.873]
[1746924884262,0.04001751,2541.3,2540.9,3.873]
[1746924884699,3.93518386,2541.2,2540.9,3.873]
[1746924884908,3.93532586,2541.1,2540.9,3.873]
[1746924885086,3.97534337,2541.1,2540.9,3.873]
[1746924885494,0.04001751,2541.1,2540.9,3.873]
[1746924885695,0.55,2541.2,2540.9,3.873]
[1746924885918,0.04001751,2541.1,2540.9,3.873]
[1746924887613,3.97533344,2541.1,2540.9,3.873]
[1746924887814,0.04001751,2541.1,2540.9,3.873]
[1746924888017,4.52511285,2541.3,2540.9,3.873]
[1746924888373,0.35538896,2541.2,2540.9,3.873]
[1746924888575,4.29055555,2541.2,2540.9,3.873]
[1746924888909,0.04001751,2541.1,2540.9,3.873]
[1746924890019,3.97538165,2541.1,2540.9,3.873]
[1746924890593,3.97532951,2541.1,2540.9,3.873]
[1746924890975,0.55,2540.9,2540.4,8.0]
[1746924891175,3.93613333,2540.6,2540.4,3.84]
[1746924891390,0.04001751,2540.8,2540.4,3.84]
[1746924891596,3.97579163,2540.8,2540.5,8.0]
[1746924892117,3.93597688,2540.7,2540.5,8.0]
[1746924892320,0.04001751,2540.6,2540.5,8.0]
[1746924892477,0.55,2540.7,2540.5,8.0]
[1746924892682,0.04001751,2540.8,2540.5,8.0]
[1746924893722,3.93600121,2540.7,2540.4,11.84]
[1746924893878,0.04001751,2540.6,2540.4,11.84]
[1746924894930,0.59001751,2540.9,2540.4,11.84]
[1746924895239,3.93577132,2540.8,2540.4,11.84]
[1746924895544,0.59001751,2540.9,2540.4,11.84]
[1746924895545,0.55,2540.6,2540.4,11.84]
[1746924895756,0.04001751,2540.5,2540.4,11.84]
[1746924895945,3.97625053,2540.5,2540.4,3.84]
[1746924896445,4.52625053,2540.5,2540.4,3.84]
[1746924896945,4.88051656,2540.5,2540.4,3.84]
[1746924897151,3.93692403,2540.1,2539.5,0.8013]
[1746924897324,0.04001751,2540.0,2539.6,3.84]
[1746924897515,0.04001751,2540.0,2539.7,8.0]
[1746924897852,0.04001751,2540.4,2539.7,9.30350141]
[1746924898050,0.04001751,2540.4,2539.7,9.26413]
[1746924898555,3.9366309,2540.3,2539.7,9.26413]
[1746924898737,0.04001751,2540.4,2539.7,9.26413]
[1746924898941,3.83,2540.8,2539.8,0.84066567]
[1746924899144,0.04001751,2540.7,2539.9,1.01047957]
[1746924899449,3.97598631,2540.7,2539.9,1.01047957]
[1746924899665,3.9362583,2540.5,2539.9,1.01047957]
[1746924899976,3.93664841,2540.3,2539.8,0.8013]
[1746924900169,0.04001751,2540.2,2539.8,0.8013]
[1746924900341,3.93672142,2540.2,2539.8,0.8013]
[1746924900663,3.97662234,2540.3,2539.8,0.8013]
[1746924900969,0.04001751,2540.3,2539.8,0.8013]
[1746924901173,3.97633393,2540.5,2539.8,0.8013]
[1746924901390,3.93639805,2540.4,2539.8,0.8013]
[1746924901675,3.97659632,2540.3,2539.8,0.8013]
[1746924901860,0.55,2540.2,2539.8,0.8013]
[1746924902166,0.55,2540.5,2539.8,0.8013]
[1746924902365,0.04001751,2540.4,2539.8,0.8013]
[1746924902671,0.04001751,2540.7,2539.9,0.03936807]
[1746924902872,0.04001751,2540.7,2540.0,0.8149]
[1746924903068,7.79959275,2541.0,2540.1,0.03936236]
[1746924903374,3.97559275,2541.0,2540.0,0.8149]
[1746924903572,3.93471103,2541.5,2540.0,0.8149]
[1746924903573,0.04001751,2541.1,2540.1,8.8149]
[1746924903726,3.823,2541.2,2540.2,3.89574974]
[1746924903931,0.04001751,2541.1,2540.4,8.0]
[1746924904161,0.04001751,2541.1,2540.5,0.8149]
[1746924904541,0.04001751,2541.4,2540.5,0.8149]
[1746924904756,0.04001751,2541.7,2540.7,0.8149]
[1746924904956,0.04001751,2541.7,2540.8,1.54127447]
[1746924905171,0.55,2541.6,2540.7,0.8149]
[1746924905344,0.04001751,2541.5,2540.7,8.8149]
[1746924905672,0.04001751,2541.7,2540.8,0.03935533]
[1746924905831,3.82,2541.7,2540.8,0.85425064]
[1746924906030,0.04001751,2541.8,2540.8,0.85425064]
[1746924906341,0.04001751,2541.8,2540.9,0.88542506]
[1746924906544,0.04001751,2541.8,2541.0,4.68224678]
[1746924906965,3.97413826,2541.9,2541.0,4.68224678]
[1746924907141,0.04001751,2541.9,2541.1,8.0]
[1746924907346,3.97409735,2541.9,2541.1,8.0]
[1746924907660,3.93424177,2541.8,2541.1,9.35283251]
[1746924907871,3.97420971,2541.9,2541.1,9.35283251]
[1746924908278,11.93332908,2542.4,2541.1,9.35283251]
[1746924908279,7.5071607,2542.6,2541.2,0.8412428]
[1746924908566,7.78926054,2542.5,2541.2,0.8412428]
[1746924908932,0.04001751,2542.5,2541.2,0.8412428]
[1746924909128,0.8138,2542.7,2541.4,0.8019]
[1746924909129,0.04001751,2542.7,2541.4,0.8019]
[1746924909369,3.93403387,2542.0,2541.4,0.8019]
[1746924909668,4.48437613,2541.7,2541.5,3.84]
[1746924909859,0.04001751,2541.6,2541.5,3.84]
[1746924910167,3.9742718,2541.8,2541.5,3.84]
[1746924910779,0.55,2541.7,2541.5,3.84]
[1746924911067,0.04001751,2541.6,2541.5,3.84]
[1746924911270,0.55,2541.7,2541.5,3.84]
[1746924911670,4.52454694,2541.6,2541.5,3.84]
[1746924912866,0.59001751,2541.6,2541.5,3.84]
[1746924913236,4.52454694,2541.6,2541.5,3.84]
[1746924913667,0.04001751,2541.6,2541.5,3.84]
[1746924913883,0.04001751,2542.1,2541.5,4.224]
[1746924914034,3.809,2542.4,2541.7,0.7708]
[1746924914236,0.8155,2543.0,2541.8,0.03933734]
[1746924914575,3.97254856,2542.9,2542.0,8.7708]
[1746924914776,3.9330317,2542.6,2542.0,8.7708]
[1746924914976,3.97319808,2542.5,2542.0,8.7708]
[1746924915400,0.04001751,2542.5,2542.0,8.7708]
[1746924915607,3.93307443,2542.6,2542.0,8.7708]
[1746924915829,0.04001751,2542.7,2542.0,11.10341407]
[1746924915998,0.55,2542.6,2542.0,8.7708]
[1746924916197,3.61418021,2542.9,2542.0,8.7708]
[1746924916368,3.93298198,2542.6,2542.2,8.0]
[1746924916569,0.04001751,2542.5,2542.2,8.0]
[1746924916769,0.55,2542.6,2542.2,8.0]
[1746924917137,0.04001751,2542.5,2542.2,8.0]
[1746924918806,3.93332147,2542.4,2542.2,8.0]
[1746924919005,3.93292651,2542.7,2542.2,8.0]
[1746924919194,0.04001751,2542.7,2542.2,8.0]
[1746924919392,3.97294117,2542.7,2542.2,8.0]
[1746924919705,0.04001751,2542.7,2542.2,8.0]
[1746924920106,0.59001751,2542.8,2542.2,8.0]
[1746924920818,3.9330092,2542.6,2542.2,8.0]
[1746924921329,3.9330092,2542.6,2542.1,3.84]
[1746924921330,0.55,2542.1,2541.2,0.8163]
[1746924921488,0.55,2542.3,2542.0,96.38581979]
[1746924921804,12.9448627,2542.1,2542.0,96.38581979]
[1746924922017,12.9448627,2542.1,2542.0,88.67913064]
[1746924922234,12.9448627,2542.1,2542.0,69.65691616]
[1746924922600,13.29802882,2542.1,2542.0,69.65691616]
[1746924922796,13.50993959,2542.1,2542.0,69.65691616]
[1746924922997,17.44369514,2542.1,2542.0,69.65691616]
[1746924926004,9.44369514,2542.1,2542.0,69.65691616]
[1746924926442,9.23178437,2542.1,2542.0,69.65691616]
[1746924927337,5.65762167,2542.1,2542.0,69.65691616]
[1746924927497,8.07792167,2542.1,2542.0,69.65691616]
[1746924927921,8.62792167,2542.1,2542.0,69.65691616]
[1746924928633,8.27475555,2542.1,2542.0,69.65691616]
[1746924928929,7.72475555,2542.1,2542.0,69.65691616]
[1746924929804,8.27475555,2542.1,2542.0,69.65691616]
[1746924930732,3.93311106,2542.6,2542.0,69.65691616]
[1746924930935,3.787,2542.8,2542.1,0.83213675]
[1746924931133,7.71975825,2542.8,2542.2,3.801]
[1746924931437,3.93230136,2543.1,2542.4,0.7928]
[1746924931733,3.93230136,2543.1,2542.5,0.0393256]
[1746924932235,3.93236585,2543.0,2542.5,0.0393256]
[1746924932542,4.48224176,2543.1,2542.5,0.0393256]
[1746924932742,3.93224176,2543.1,2542.5,0.0393256]
[1746924933035,0.55,2543.2,2542.4,2.05611299]
[1746924933241,3.93271718,2542.8,2542.4,2.05611299]
[1746924933419,3.93254268,2542.9,2542.4,2.05611299]
[1746924933832,0.55,2543.2,2542.4,2.05611299]
[1746924934238,3.93313667,2542.5,2542.4,0.7928]
[1746924934435,3.9330834,2542.6,2542.4,0.7928]
[1746924934842,0.55,2543.0,2542.4,0.7928]
[1746924935050,3.93313667,2542.5,2542.4,0.7928]
[1746924935523,3.93295326,2542.7,2542.2,0.03933097]
[1746924935718,3.93295326,2542.7,2542.3,3.8]
[1746924936315,3.933021,2542.6,2542.3,3.8]
[1746924936634,3.93307916,2542.6,2542.3,3.8]
[1746924936945,3.9331769,2542.5,2542.3,3.8]
[1746924937243,3.93267924,2542.8,2542.3,3.8]
[1746924937739,0.785,2543.2,2542.3,4.43149686]
[1746924937940,4.48254668,2542.9,2542.3,4.43149686]
[1746924938146,3.93283456,2542.7,2542.3,4.43149686]
[1746924938518,3.93267264,2542.8,2542.3,4.43149686]
[1746924939145,3.93286185,2542.7,2542.3,4.43149686]
[1746924939517,0.55,2542.9,2542.3,4.43149686]
[1746924939815,3.93267264,2542.8,2542.3,4.43149686]
[1746924940213,3.93285795,2542.7,2542.3,4.43149686]
[1746924940623,0.55,2542.9,2542.3,4.43149686]
[1746924940979,3.93359219,2542.3,2542.2,3.8]
[1746924941158,3.93315978,2542.5,2542.2,3.8]
[1746924941453,8.25504014,2542.6,2542.2,3.8]
[1746924941757,3.772,2542.6,2542.3,8.0]
[1746924941920,3.772,2542.6,2542.3,9.26321339]